[Event "1000GM NY Winter GM-B 2024"]
[Site "New York"]
[Date "2024.01.14"]
[Round "6.3"]
[White "Paragua, Mark"]
[Black "Luo, Terry"]
[Result "1-0"]
[ECO "A49"]
[WhiteElo "2448"]
[BlackElo "2342"]
[Annotator "RC"]
[PlyCount "113"]
[EventDate "2024.01.10"]
[EventType "tourn"]
[EventCountry "USA"]
[SourceTitle "playchess.com"]
[Source "ChessBase"]
[SourceQuality "1"]
[TimeControl "5400+30"]

1. Nf3 {[%emt 0:04:52]} Nf6 {[%emt 0:00:14]} 2. g3 {[%emt 0:00:08]} g6 {[%emt 0:00:13]} 3. b3 {[%emt 0:00:07]} Bg7 {[%emt 0:00:04]} 4. Bb2 {[%emt 0:00:06]} O-O {[%emt 0:00:07]} 5. Bg2 {[%emt 0:00:42]} d6 {[%emt 0:00:06]} 6. d4 {[%emt 0:00:06]} b5 {[%emt 0:00:02]} 7. Nfd2 {[%emt 0:05:30]} d5 {[%emt 0:04:40]} 8. O-O {[%emt 0:00:33]} Nbd7 {[%emt 0:06:34]} 9. e4 {[%emt 0:02:34]} dxe4 {[%emt 0:04:19]} 10. Nc3 {[%emt 0:01:32]} Rb8 {[%emt 0:00:48]} 11. Re1 {[%emt 0:02:19]} Bb7 {[%emt 0:03:45]} 12. Qe2 {[%emt 0:05:20]} e3 {[%emt 0:06:40]} 13. Qxe3 {[%emt 0:00:55]} Bxg2 {[%emt 0:00:08]} 14. Kxg2 {[%emt 0:00:05]} e6 {[%emt 0:01:06]} 15. Rad1 {[%emt 0:03:34]} Nb6 {[%emt 0:02:51]} 16. Qf3 {[%emt 0:03:09]} Nbd5 {[%emt 0:09:44]} 17. Nce4 {[%emt 0:01:38]} Nxe4 {[%emt 0:11:48]} 18. Nxe4 {[%emt 0:00:13]} b4 {[%emt 0:01:51]} 19. h4 {[%emt 0:04:07]} h5 {[%emt 0:00:36]} 20. Bc1 {[%emt 0:11:35]} Qd7 {[%emt 0:02:45]} 21. g4 {[%emt 0:07:13]} hxg4 {[%emt 0:01:59]} 22. Qxg4 {[%emt 0:00:25]} Qc6 {[%emt 0:11:13]} 23. Qf3 {[%emt 0:01:05]} Ne7 {[%emt 0:07:29]} 24. Bg5 {[%emt 0:10:05]} f6 {[%emt 0:00:16]} 25. Be3 {[%emt 0:03:35]} Qd5 {[%emt 0:04:38]} 26. Nc5 {[%emt 0:00:32]} Rbe8 {[%emt 0:00:19]} 27. Bd2 {[%emt 0:05:59]} Nf5 {[%emt 0:00:41]} 28. Qxd5 {[%emt 0:03:40]} exd5 {[%emt 0:00:01]} 29. Bxb4 {[%emt 0:00:06]} Rxe1 {[%emt 0:02:11]} 30. Rxe1 {[%emt 0:01:25]} Nxd4 {[%emt 0:01:28]} 31. Bc3 {[%emt 0:03:12]} Nf5 {[%emt 0:17:24]} 32. Re6 {[%emt 0:04:57]} Nxh4+ {[%emt 0:00:00]} 33. Kf1 {[%emt 0:00:48]} Rf7 {[%emt 0:00:00]} 34. Ra6 {[%emt 0:00:36]} Bf8 {[%emt 0:00:00]} 35. Ne6 {[%emt 0:00:53]} c5 {[%emt 0:00:00]} 36. Nxf8 {[%emt 0:00:05]} Kxf8 {[%emt 0:00:00]} 37. Bxf6 {[%emt 0:00:12]} Nf5 {[%emt 0:00:00]} 38. Be5 {[%emt 0:06:18]} c4 {[%emt 0:00:00]} 39. Kg1 {[%emt 0:04:43]} Nh4 {[%emt 0:00:00]} 40. Bd6+ {[%emt 0:00:40]} Ke8 {[%emt 0:00:00]} 41. Bc5 {[%emt 0:00:08]} Rc7 {[%emt 0:01:13]} 42. b4 {[%emt 0:02:19]} d4 {[%emt 0:00:01]} 43. Kf1 {[%emt 0:00:06]} d3 {[%emt 0:01:05]} 44. cxd3 {[%emt 0:00:30]} cxd3 {[%emt 0:00:01]} 45. Rxa7 {[%emt 0:02:48]} Rxa7 {[%emt 0:00:25]} 46. Bxa7 {[%emt 0:00:01]} Nf3 {[%emt 0:00:07]} 47. a4 {[%emt 0:01:00]} Kd7 {[%emt 0:00:27]} 48. Be3 {[%emt 0:00:15]} Ne5 {[%emt 0:00:16]} 49. a5 {[%emt 0:00:56]} Nc4 {[%emt 0:00:50]} 50. Bc5 {[%emt 0:00:50]} Kc6 {[%emt 0:01:02]} 51. a6 {[%emt 0:00:12]} g5 {[%emt 0:00:44]} 52. Ke1 {[%emt 0:00:16]} g4 {[%emt 0:00:40]} 53. Kd1 {[%emt 0:00:26]} Kc7 {[%emt 0:00:23]} 54. b5 {[%emt 0:00:33]} Kc8 {[%emt 0:00:26]} 55. b6 {[%emt 0:00:20]} Na5 {[%emt 0:00:12]} 56. Be3 {[%emt 0:00:46]} Nc4 {[%emt 0:00:05]} 57. b7+ {[%emt 0:00:10]} 1-0

[Event "1000GM NY Winter GM-B 2024"]
[Site "New York"]
[Date "2024.01.14"]
[Round "6.4"]
[White "Lee, Alice"]
[Black "Griffith, Kyron"]
[Result "1-0"]
[ECO "D24"]
[WhiteElo "2379"]
[BlackElo "2367"]
[Annotator "RC"]
[PlyCount "101"]
[EventDate "2024.01.10"]
[EventType "tourn"]
[EventCountry "USA"]
[SourceTitle "playchess.com"]
[Source "ChessBase"]
[SourceQuality "1"]
[TimeControl "5400+30"]

1. d4 {[%emt 0:00:03]} Nf6 {[%emt 0:00:07]} 2. c4 {[%emt 0:00:03]} e6 {[%emt 0:00:10]} 3. Nf3 {[%emt 0:00:04]} d5 {[%emt 0:00:09]} 4. Nc3 {[%emt 0:00:05]} dxc4 {[%emt 0:01:08]} 5. e4 {[%emt 0:00:07]} b5 {[%emt 0:00:10]} 6. e5 {[%emt 0:00:05]} Nd5 {[%emt 0:00:05]} 7. Nxb5 {[%emt 0:00:05]} Nb6 {[%emt 0:00:07]} 8. Be2 {[%emt 0:00:13]} Be7 {[%emt 0:00:10]} 9. Be3 {[%emt 0:00:16]} Bb7 {[%emt 0:02:01]} 10. Qc2 {[%emt 0:00:35]} a6 {[%emt 0:04:46]} 11. Nc3 {[%emt 0:00:08]} Nc6 {[%emt 0:01:13]} 12. a3 {[%emt 0:00:14]} Qd7 {[%emt 0:04:18]} 13. Rd1 {[%emt 0:00:40]} O-O-O {[%emt 0:10:57]} 14. d5 {[%emt 0:09:10]} Nxd5 {[%emt 0:02:42]} 15. Nxd5 {[%emt 0:00:18]} exd5 {[%emt 0:00:05]} 16. Bxc4 {[%emt 0:00:49]} Qg4 {[%emt 0:16:12]} 17. Be2 {[%emt 0:18:49]} d4 {[%emt 0:11:10]} 18. Ng5 {[%emt 0:06:08]} Qd7 {[%emt 0:00:44]} 19. Nxf7 {[%emt 0:01:03]} Bb4+ {[%emt 0:03:48]} 20. axb4 {[%emt 0:00:02]} Qxf7 {[%emt 0:00:06]} 21. Bg5 {[%emt 0:01:19]} Nxe5 {[%emt 0:01:44]} 22. Bxd8 {[%emt 0:01:01]} Rxd8 {[%emt 0:00:17]} 23. f3 {[%emt 0:11:20]} Qf4 {[%emt 0:10:12]} 24. O-O {[%emt 0:14:39]} d3 {[%emt 0:03:10]} 25. Bxd3 {[%emt 0:00:01]} Qd4+ {[%emt 0:06:30]} 26. Kh1 {[%emt 0:06:29]} Nxd3 {[%emt 0:00:03]} 27. Rd2 {[%emt 0:00:16]} Qe3 {[%emt 0:08:23]} 28. Re2 {[%emt 0:00:24]} Qf4 {[%emt 0:01:44]} 29. Rd2 {[%emt 0:02:06]} Be4 {[%emt 0:01:26]} 30. Qc3 {[%emt 0:02:35]} Rd6 {[%emt 0:00:56]} 31. Re2 {[%emt 0:04:25]} Rh6 {[%emt 0:00:22]} 32. h3 {[%emt 0:00:05]} Bf5 {[%emt 0:01:17]} 33. Re8+ {[%emt 0:01:30]} Kb7 {[%emt 0:01:32]} 34. Rf8 {[%emt 0:00:18]} Qg5 {[%emt 0:06:42]} 35. Rf7 {[%emt 0:05:43]} Rc6 {[%emt 0:00:07]} 36. Qd4 {[%emt 0:02:08]} Nf4 {[%emt 0:01:02]} 37. Rxg7 {[%emt 0:01:50]} Bg6 {[%emt 0:00:13]} 38. Qd2 {[%emt 0:02:39]} Qf6 {[%emt 0:00:37]} 39. Rg8 {[%emt 0:01:37]} Rc2 {[%emt 0:00:39]} 40. Qd7 {[%emt 0:00:25]} Bf5 {[%emt 0:00:49]} 41. Qe8 {[%emt 0:00:13]} Kb6 {[%emt 0:02:20]} 42. Qa8 {[%emt 0:00:10]} Kb5 {[%emt 0:00:34]} 43. Qe8+ {[%emt 0:03:38]} c6 {[%emt 0:00:28]} 44. Qb8+ {[%emt 0:00:17]} Ka4 {[%emt 0:00:08]} 45. Qxf4 {[%emt 0:00:17]} Qe6 {[%emt 0:00:13]} 46. Rg5 {[%emt 0:02:19]} Bxh3 {[%emt 0:00:41]} 47. gxh3 {[%emt 0:01:13]} Qxh3+ {[%emt 0:00:05]} 48. Kg1 {[%emt 0:00:03]} Qe6 {[%emt 0:00:24]} 49. Qe4 {[%emt 0:01:12]} Qxe4 {[%emt 0:01:40]} 50. fxe4 {[%emt 0:00:01]} Rxb2 {[%emt 0:00:04]} 51. Re1 {[%emt 0:00:23]} 1-0

[Event "1000GM NY Winter GM-B 2024"]
[Site "New York"]
[Date "2024.01.14"]
[Round "6.5"]
[White "Koustav Chatterjee"]
[Black "Nakada, Akira"]
[Result "1-0"]
[ECO "B12"]
[WhiteElo "2546"]
[BlackElo "2374"]
[Annotator "RC"]
[PlyCount "20"]
[EventDate "2024.01.10"]
[EventType "tourn"]
[EventCountry "USA"]
[SourceTitle "playchess.com"]
[Source "ChessBase"]
[SourceQuality "1"]
[TimeControl "5400+30"]

1. e4 {[%emt 0:00:03]} c6 {[%emt 0:00:08]} 2. d4 {[%emt 0:00:08]} d5 {[%emt 0:00:06]} 3. e5 {[%emt 0:00:06]} c5 {[%emt 0:00:40]} 4. c3 {[%emt 0:00:07]} Nc6 {[%emt 0:02:08]} 5. Be2 {[%emt 0:00:08]} e6 {[%emt 0:01:56]} 6. Nf3 {[%emt 0:03:50]} Bd7 {[%emt 0:00:05]} 7. O-O {[%emt 0:01:48]} Nge7 {[%emt 0:00:25]} 8. dxc5 {[%emt 0:02:37]} Ng6 {[%emt 0:01:14]} 9. Be3 {[%emt 0:02:57]} Ngxe5 {[%emt 0:00:21]} 10. Nxe5 Nxe5 {[%emt 0:04:56]} 1-0

[Event "1000GM NY Winter GM-B 2024"]
[Site "New York"]
[Date "2024.01.15"]
[Round "7.1"]
[White "Nakada, Akira"]
[Black "Adewumi, Tanitoluwa"]
[Result "1-0"]
[ECO "D38"]
[WhiteElo "2374"]
[BlackElo "2280"]
[Annotator "RC"]
[PlyCount "106"]
[EventDate "2024.01.10"]
[EventType "tourn"]
[EventCountry "USA"]
[SourceTitle "playchess.com"]
[Source "ChessBase"]
[SourceQuality "1"]
[TimeControl "5400+30"]

1. Nf3 {[%emt 0:07:52]} d5 {[%emt 0:00:33]} 2. d4 {[%emt 0:00:36]} Nf6 {[%emt 0:00:15]} 3. c4 {[%emt 0:00:05]} e6 {[%emt 0:00:38]} 4. Nc3 {[%emt 0:00:13]} Bb4 {[%emt 0:00:59]} 5. Qa4+ {[%emt 0:01:11]} Nc6 {[%emt 0:00:06]} 6. e3 {[%emt 0:00:05]} O-O {[%emt 0:00:17]} 7. Qc2 {[%emt 0:00:11]} dxc4 {[%emt 0:05:43]} 8. Bxc4 {[%emt 0:00:34]} Bd6 {[%emt 0:00:16]} 9. O-O {[%emt 0:01:09]} e5 {[%emt 0:00:12]} 10. h3 {[%emt 0:00:17]} Qe7 {[%emt 0:00:38]} 11. a3 {[%emt 0:02:13]} h6 {[%emt 0:06:27]} 12. b4 {[%emt 0:02:46]} e4 {[%emt 0:10:26]} 13. Nd2 {[%emt 0:01:50]} Bf5 {[%emt 0:01:31]} 14. Nb3 {[%emt 0:02:00]} Rae8 {[%emt 0:08:14]} 15. Nc5 {[%emt 0:13:01]} Bc8 {[%emt 0:07:14]} 16. Bd2 {[%emt 0:06:30]} Nd8 {[%emt 0:05:14]} 17. f3 {[%emt 0:18:08]} exf3 {[%emt 0:02:43]} 18. Rxf3 {[%emt 0:00:16]} c6 {[%emt 0:48:04]} 19. Raf1 {[%emt 0:03:03]} Nh7 {[%emt 0:00:00]} 20. e4 {[%emt 0:18:37]} b6 {[%emt 0:00:00]} 21. Nb3 {[%emt 0:00:05]} Be6 {[%emt 0:00:00]} 22. Bd3 {[%emt 0:00:27]} Bxb3 {[%emt 0:00:00]} 23. Qxb3 {[%emt 0:00:10]} Ne6 {[%emt 0:00:00]} 24. e5 {[%emt 0:04:57]} Bb8 {[%emt 0:00:00]} 25. Be3 {[%emt 0:00:26]} Rd8 {[%emt 0:00:00]} 26. Bxh7+ {[%emt 0:06:11]} Kxh7 {[%emt 0:00:00]} 27. Qb1+ {[%emt 0:00:15]} Kg8 {[%emt 0:00:00]} 28. Qe4 {[%emt 0:00:15]} Qd7 {[%emt 0:00:00]} 29. Ne2 {[%emt 0:01:44]} Qd5 {[%emt 0:00:00]} 30. Qxd5 {[%emt 0:07:08]} Rxd5 {[%emt 0:03:44]} 31. Nf4 {[%emt 0:00:51]} Nxf4 {[%emt 0:01:19]} 32. Rxf4 {[%emt 0:00:04]} a5 {[%emt 0:01:14]} 33. R4f2 {[%emt 0:02:08]} axb4 {[%emt 0:00:12]} 34. axb4 {[%emt 0:00:03]} c5 {[%emt 0:00:54]} 35. dxc5 {[%emt 0:00:24]} bxc5 {[%emt 0:00:31]} 36. Bxc5 {[%emt 0:00:31]} Rfd8 {[%emt 0:00:27]} 37. Rxf7 {[%emt 0:00:15]} Bxe5 {[%emt 0:00:06]} 38. Rf8+ {[%emt 0:01:02]} Rxf8 {[%emt 0:00:15]} 39. Rxf8+ {[%emt 0:00:06]} Kh7 {[%emt 0:00:03]} 40. Rf1 {[%emt 0:00:48]} Kg6 {[%emt 0:00:27]} 41. Rb1 {[%emt 0:00:52]} Kf5 {[%emt 0:00:10]} 42. Bf2 {[%emt 0:00:12]} Rb5 {[%emt 0:00:41]} 43. Bc5 {[%emt 0:00:12]} Ke4 {[%emt 0:00:09]} 44. Kf2 {[%emt 0:00:48]} h5 {[%emt 0:00:32]} 45. Re1+ {[%emt 0:00:15]} Kd5 {[%emt 0:00:17]} 46. Kf3 {[%emt 0:00:06]} Rb7 {[%emt 0:01:45]} 47. Rd1+ {[%emt 0:00:06]} Kc4 {[%emt 0:00:47]} 48. Ke4 {[%emt 0:00:55]} Bc3 {[%emt 0:00:23]} 49. Kf5 {[%emt 0:00:57]} Bxb4 {[%emt 0:01:01]} 50. Bxb4 {[%emt 0:00:04]} Rxb4 {[%emt 0:00:11]} 51. Rd7 {[%emt 0:01:43]} Rb5+ {[%emt 0:00:47]} 52. Kg6 {[%emt 0:01:53]} Rb3 {[%emt 0:00:34]} 53. Rxg7 {[%emt 0:00:00]} h4 {[%emt 0:01:01]} 1-0

[Event "1000GM NY Winter GM-B 2024"]
[Site "New York"]
[Date "2024.01.15"]
[Round "7.2"]
[White "Griffith, Kyron"]
[Black "Koustav Chatterjee"]
[Result "1/2-1/2"]
[ECO "C07"]
[WhiteElo "2367"]
[BlackElo "2546"]
[Annotator "RC"]
[PlyCount "52"]
[EventDate "2024.01.10"]
[EventType "tourn"]
[EventCountry "USA"]
[SourceTitle "playchess.com"]
[Source "ChessBase"]
[SourceQuality "1"]
[TimeControl "5400+30"]

1. e4 {[%emt 0:01:18]} e6 {[%emt 0:00:10]} 2. d4 {[%emt 0:00:06]} d5 {[%emt 0:00:03]} 3. Nd2 {[%emt 0:00:06]} c5 {[%emt 0:00:03]} 4. Ngf3 {[%emt 0:00:06]} cxd4 {[%emt 0:00:05]} 5. Nxd4 {[%emt 0:00:07]} Nc6 {[%emt 0:00:03]} 6. Bb5 {[%emt 0:00:11]} Bd7 {[%emt 0:00:04]} 7. Nxc6 {[%emt 0:00:07]} bxc6 {[%emt 0:00:03]} 8. Bd3 {[%emt 0:00:09]} Qc7 {[%emt 0:00:04]} 9. Qe2 {[%emt 0:00:38]} Ne7 {[%emt 0:00:07]} 10. Nf3 {[%emt 0:00:56]} Ng6 {[%emt 0:00:08]} 11. O-O {[%emt 0:00:58]} Be7 {[%emt 0:00:06]} 12. c4 {[%emt 0:01:57]} dxe4 {[%emt 0:00:15]} 13. Bxe4 {[%emt 0:01:17]} f5 {[%emt 0:00:22]} 14. Bc2 {[%emt 0:00:45]} e5 {[%emt 0:00:06]} 15. c5 {[%emt 0:06:12]} e4 {[%emt 0:05:51]} 16. Nd4 {[%emt 0:07:08]} O-O {[%emt 0:12:42]} 17. f3 {[%emt 0:13:47]} Kh8 {[%emt 0:08:43]} 18. Nb3 {[%emt 0:03:26]} a5 {[%emt 0:11:24]} 19. fxe4 {[%emt 0:05:55]} a4 {[%emt 0:01:08]} 20. Nd2 {[%emt 0:02:06]} f4 {[%emt 0:04:39]} 21. Kh1 {[%emt 0:11:03]} Ne5 {[%emt 0:02:59]} 22. b4 {[%emt 0:03:25]} axb3 {[%emt 0:13:04]} 23. Bxb3 {[%emt 0:00:06]} Bxc5 {[%emt 0:05:06]} 24. Bb2 {[%emt 0:00:36]} Bd6 {[%emt 0:06:04]} 25. Nf3 {[%emt 0:00:16]} Bg4 {[%emt 0:00:25]} 26. Rac1 {[%emt 0:01:29]} Rac8 {[%emt 0:06:17]} 1/2-1/2

[Event "1000GM NY Winter GM-B 2024"]
[Site "New York"]
[Date "2024.01.15"]
[Round "7.3"]
[White "Luo, Terry"]
[Black "Lee, Alice"]
[Result "1/2-1/2"]
[ECO "D37"]
[WhiteElo "2342"]
[BlackElo "2379"]
[Annotator "RC"]
[PlyCount "59"]
[EventDate "2024.01.10"]
[EventType "tourn"]
[EventCountry "USA"]
[SourceTitle "playchess.com"]
[Source "ChessBase"]
[SourceQuality "1"]
[TimeControl "5400+30"]

1. d4 {[%emt 0:00:01]} d5 {[%emt 1:31:00]} 2. c4 {[%emt 0:00:02]} e6 {[%emt 0:00:00]} 3. Nc3 {[%emt 0:00:04]} Nf6 {[%emt 0:00:00]} 4. Nf3 {[%emt 0:00:08]} Nbd7 {[%emt 0:00:00]} 5. Bf4 {[%emt 0:00:27]} dxc4 {[%emt 0:00:00]} 6. e3 {[%emt 0:02:42]} Bb4 {[%emt 0:00:00]} 7. Bxc4 {[%emt 0:02:47]} Nd5 {[%emt 0:00:00]} 8. Bxd5 {[%emt 0:13:16]} Bxc3+ {[%emt 0:00:00]} 9. bxc3 {[%emt 0:00:02]} exd5 {[%emt 0:00:00]} 10. c4 {[%emt 0:00:45]} dxc4 {[%emt 0:00:00]} 11. Qa4 {[%emt 0:00:01]} c6 {[%emt 0:00:00]} 12. Qxc4 {[%emt 0:00:41]} Qa5+ {[%emt 0:00:00]} 13. Nd2 {[%emt 0:02:37]} Nf6 {[%emt 0:00:00]} 14. Qc5 {[%emt 0:05:04]} Qxd2+ {[%emt 0:00:00]} 15. Kxd2 {[%emt 0:00:05]} Ne4+ {[%emt 0:00:00]} 16. Ke2 {[%emt 0:00:29]} Nxc5 {[%emt 0:00:00]} 17. dxc5 {[%emt 0:00:13]} Be6 {[%emt 0:00:00]} 18. Rhb1 {[%emt 0:05:56]} Bc4+ {[%emt 0:00:00]} 19. Ke1 {[%emt 0:00:33]} O-O-O {[%emt 0:00:00]} 20. Rb4 {[%emt 0:02:47]} Bd3 {[%emt 0:00:00]} 21. Bd6 {[%emt 0:05:41]} Rhe8 {[%emt 0:00:00]} 22. Kd2 {[%emt 0:03:12]} Bg6 {[%emt 0:00:00]} 23. Rd4 {[%emt 0:01:11]} Re4 {[%emt 0:00:00]} 24. Rxe4 {[%emt 0:06:46]} Bxe4 {[%emt 0:00:00]} 25. f3 {[%emt 0:00:04]} Bg6 {[%emt 0:00:00]} 26. Kc3 {[%emt 0:01:30]} f6 {[%emt 0:00:00]} 27. Rd1 {[%emt 0:01:11]} b6 {[%emt 0:00:00]} 28. Rd4 {[%emt 0:01:14]} b5 {[%emt 0:00:00]} 29. Kb4 {[%emt 0:09:46]} Kb7 {[%emt 0:00:00]} 30. Ka5 {[%emt 0:01:08]} 1/2-1/2

[Event "1000GM NY Winter GM-B 2024"]
[Site "New York"]
[Date "2024.01.15"]
[Round "7.4"]
[White "Levine, Joseph"]
[Black "Paragua, Mark"]
[Result "1-0"]
[ECO "B99"]
[WhiteElo "2376"]
[BlackElo "2448"]
[Annotator "RC"]
[PlyCount "104"]
[EventDate "2024.01.10"]
[EventType "tourn"]
[EventCountry "USA"]
[SourceTitle "playchess.com"]
[Source "ChessBase"]
[SourceQuality "1"]
[TimeControl "5400+30"]

1. e4 {[%emt 0:00:03]} c5 {[%emt 0:00:10]} 2. Nf3 {[%emt 0:00:18]} d6 {[%emt 0:00:11]} 3. d4 {[%emt 0:00:08]} cxd4 {[%emt 0:00:04]} 4. Nxd4 {[%emt 0:00:07]} Nf6 {[%emt 0:00:05]} 5. Nc3 {[%emt 0:00:05]} a6 {[%emt 0:00:03]} 6. Bg5 {[%emt 0:00:10]} e6 {[%emt 0:00:05]} 7. f4 {[%emt 0:00:09]} Be7 {[%emt 0:00:05]} 8. Qf3 {[%emt 0:00:09]} Qc7 {[%emt 0:00:12]} 9. O-O-O {[%emt 0:00:18]} Nbd7 {[%emt 0:00:29]} 10. g4 {[%emt 0:00:09]} h6 {[%emt 0:00:08]} 11. Bxf6 {[%emt 0:00:04]} Bxf6 {[%emt 0:00:08]} 12. h4 {[%emt 0:00:04]} Nb6 {[%emt 0:00:15]} 13. g5 {[%emt 0:00:05]} Bxd4 {[%emt 0:00:10]} 14. Rxd4 {[%emt 0:00:04]} Qc5 {[%emt 0:00:31]} 15. Rd2 {[%emt 0:00:09]} Bd7 {[%emt 0:00:19]} 16. Be2 {[%emt 0:00:01]} Na4 {[%emt 0:00:31]} 17. Rd3 {[%emt 0:00:04]} Rc8 {[%emt 0:03:45]} 18. Bd1 {[%emt 0:00:02]} Nb6 {[%emt 0:04:38]} 19. Ne2 {[%emt 0:20:04]} Nc4 {[%emt 0:00:57]} 20. a3 {[%emt 0:10:49]} a5 {[%emt 0:06:38]} 21. Qg3 {[%emt 0:10:18]} hxg5 {[%emt 0:13:53]} 22. Qxg5 {[%emt 0:09:04]} Qxg5 {[%emt 0:00:11]} 23. fxg5 {[%emt 0:00:03]} Rc5 {[%emt 0:12:25]} 24. Ng3 {[%emt 0:05:39]} Ke7 {[%emt 0:01:39]} 25. Rc3 {[%emt 0:02:52]} b5 {[%emt 0:03:50]} 26. Be2 {[%emt 0:02:46]} g6 {[%emt 0:01:01]} 27. b4 {[%emt 0:03:39]} axb4 {[%emt 0:01:49]} 28. axb4 {[%emt 0:00:05]} Rcc8 {[%emt 0:00:24]} 29. Bxc4 {[%emt 0:01:33]} bxc4 {[%emt 0:00:16]} 30. Ra3 {[%emt 0:08:12]} c3 {[%emt 0:01:40]} 31. Kd1 {[%emt 0:13:19]} Rc4 {[%emt 0:02:35]} 32. Ke2 {[%emt 0:00:42]} Rhc8 {[%emt 0:21:08]} 33. Rb1 {[%emt 0:05:30]} Bb5 {[%emt 0:02:28]} 34. Ke3 {[%emt 0:01:34]} d5 {[%emt 0:00:46]} 35. Ra5 {[%emt 0:02:59]} d4+ {[%emt 0:02:00]} 36. Kd3 {[%emt 0:00:59]} R4c5+ {[%emt 0:05:01]} 37. Kxd4 {[%emt 0:00:31]} Rc4+ {[%emt 0:00:05]} 38. Ke3 {[%emt 0:01:19]} Bd7 {[%emt 0:00:52]} 39. b5 {[%emt 0:02:12]} R8c7 {[%emt 0:05:03]} 40. Ne2 {[%emt 0:03:27]} R4c5 {[%emt 0:05:55]} 41. Kd3 {[%emt 0:00:39]} f6 {[%emt 0:00:40]} 42. gxf6+ {[%emt 0:00:14]} Kxf6 {[%emt 0:00:01]} 43. Rb3 {[%emt 0:00:45]} Rb7 {[%emt 0:01:02]} 44. Nxc3 {[%emt 0:01:07]} Rh5 {[%emt 0:00:03]} 45. Kc4 {[%emt 0:00:00]} Rxh4 {[%emt 0:00:51]} 46. b6 {[%emt 0:00:16]} Rh8 {[%emt 0:00:55]} 47. Ra7 {[%emt 0:00:36]} Rc8+ {[%emt 0:00:18]} 48. Kd4 {[%emt 0:00:12]} Bc6 {[%emt 0:01:18]} 49. e5+ {[%emt 0:00:40]} Kg5 {[%emt 0:01:33]} 50. Rxb7 {[%emt 0:00:23]} Bxb7 {[%emt 0:00:02]} 51. Ne4+ {[%emt 0:00:29]} Kf4 {[%emt 0:01:00]} 52. Nd6 {[%emt 0:00:11]} Rd8 {[%emt 0:06:22]} 1-0

[Event "1000GM NY Winter GM-B 2024"]
[Site "New York"]
[Date "2024.01.15"]
[Round "7.5"]
[White "Graif, William"]
[Black "Nagy, Gabor"]
[Result "1/2-1/2"]
[ECO "B21"]
[WhiteElo "2302"]
[BlackElo "2450"]
[Annotator "RC"]
[PlyCount "112"]
[EventDate "2024.01.10"]
[EventType "tourn"]
[EventCountry "USA"]
[SourceTitle "playchess.com"]
[Source "ChessBase"]
[SourceQuality "1"]
[TimeControl "5400+30"]

1. e4 {[%emt 0:04:00]} c5 {[%emt 0:00:34]} 2. Nc3 {[%emt 0:00:05]} e6 {[%emt 0:00:26]} 3. f4 {[%emt 0:01:04]} d5 {[%emt 0:01:10]} 4. Nf3 {[%emt 0:00:06]} dxe4 {[%emt 0:01:13]} 5. Nxe4 {[%emt 0:00:11]} Nc6 {[%emt 0:00:26]} 6. Bb5 {[%emt 0:01:13]} Bd7 {[%emt 0:01:17]} 7. Qe2 {[%emt 0:01:53]} Nf6 {[%emt 0:03:01]} 8. f5 {[%emt 0:09:02]} Nxe4 {[%emt 0:12:54]} 9. Qxe4 {[%emt 0:00:21]} Qe7 {[%emt 0:06:33]} 10. fxe6 {[%emt 0:01:58]} Qxe6 {[%emt 0:01:46]} 11. Qxe6+ {[%emt 0:01:24]} Bxe6 {[%emt 0:00:48]} 12. Ne5 {[%emt 0:38:37]} Bd5 {[%emt 0:01:58]} 13. O-O {[%emt 0:03:00]} Bd6 {[%emt 0:01:00]} 14. Nc4 {[%emt 0:10:10]} Bxc4 {[%emt 0:04:53]} 15. Bxc4 {[%emt 0:00:03]} O-O {[%emt 0:00:20]} 16. d3 {[%emt 0:03:24]} Nd4 {[%emt 0:00:29]} 17. Rf2 {[%emt 0:04:35]} Rae8 {[%emt 0:00:46]} 18. Bg5 {[%emt 0:00:24]} b5 {[%emt 0:00:35]} 19. Bb3 {[%emt 0:07:23]} c4 {[%emt 0:02:50]} 20. dxc4 {[%emt 0:01:34]} Bc5 {[%emt 0:02:16]} 21. Kf1 {[%emt 0:02:40]} Nxb3 {[%emt 0:01:03]} 22. axb3 {[%emt 0:00:07]} Bxf2 {[%emt 0:00:07]} 23. Kxf2 {[%emt 0:00:04]} bxc4 {[%emt 0:00:07]} 24. bxc4 {[%emt 0:00:17]} Re4 {[%emt 0:00:06]} 25. b3 {[%emt 0:05:44]} Rfe8 {[%emt 0:00:21]} 26. Ra2 {[%emt 0:03:15]} h6 {[%emt 0:02:54]} 27. Bc1 {[%emt 0:00:04]} Re2+ {[%emt 0:00:17]} 28. Kf3 {[%emt 0:00:11]} g5 {[%emt 0:00:35]} 29. c5 {[%emt 0:01:34]} Re1 {[%emt 0:03:12]} 30. Bd2 {[%emt 0:00:26]} Rf1+ {[%emt 0:00:17]} 31. Kg3 {[%emt 0:00:07]} Rf6 {[%emt 0:06:16]} 32. Rxa7 {[%emt 0:00:56]} Re2 {[%emt 0:00:06]} 33. Rd7 {[%emt 0:00:33]} Rff2 {[%emt 0:00:56]} 34. c6 {[%emt 0:00:27]} Rxg2+ {[%emt 0:00:08]} 35. Kf3 {[%emt 0:00:09]} Rgf2+ {[%emt 0:00:41]} 36. Kg3 {[%emt 0:00:07]} Rg2+ {[%emt 0:03:56]} 37. Kf3 {[%emt 0:00:02]} Rxd2 {[%emt 0:03:10]} 38. c7 {[%emt 0:00:13]} Rxc2 {[%emt 0:00:07]} 39. c8=Q+ {[%emt 0:00:38]} Rxc8 {[%emt 0:01:41]} 40. Kxg2 {[%emt 0:00:02]} Rc2+ {[%emt 0:00:09]} 41. Kg1 {[%emt 0:00:11]} Rb2 {[%emt 0:01:00]} 42. Rb7 {[%emt 0:00:37]} g4 {[%emt 0:00:36]} 43. Rb4 {[%emt 0:00:59]} h5 {[%emt 0:00:15]} 44. Rb5 {[%emt 0:00:26]} Kg7 {[%emt 0:01:56]} 45. Rxh5 {[%emt 0:00:27]} Kg6 {[%emt 0:00:14]} 46. Rb5 {[%emt 0:00:49]} f5 {[%emt 0:00:05]} 47. Rb4 {[%emt 0:01:36]} Kg5 {[%emt 0:00:08]} 48. Kh1 {[%emt 0:00:42]} Kh4 {[%emt 0:00:13]} 49. Rb8 {[%emt 0:00:26]} Kg5 {[%emt 0:00:10]} 50. Rb4 {[%emt 0:00:26]} f4 {[%emt 0:00:08]} 51. Rb5+ {[%emt 0:00:26]} Kh4 {[%emt 0:00:17]} 52. Rb8 {[%emt 0:00:35]} g3 {[%emt 0:02:30]} 53. Rh8+ {[%emt 0:00:26]} Kg4 {[%emt 0:00:07]} 54. Rg8+ {[%emt 0:00:10]} Kf3 {[%emt 0:00:08]} 55. hxg3 {[%emt 0:00:10]} Rxb3 {[%emt 0:00:28]} 56. gxf4 {[%emt 0:00:16]} Kxf4 {[%emt 0:00:09]} 1/2-1/2

[Event "1000GM NY Winter GM-B 2024"]
[Site "New York"]
[Date "2024.01.15"]
[Round "8.1"]
[White "Adewumi, Tanitoluwa"]
[Black "Nagy, Gabor"]
[Result "1/2-1/2"]
[ECO "E16"]
[WhiteElo "2280"]
[BlackElo "2450"]
[Annotator "ChessBase"]
[PlyCount "43"]
[EventDate "2024.01.10"]
[EventType "tourn"]
[EventCountry "USA"]
[SourceTitle "playchess.com"]
[Source "ChessBase"]
[SourceQuality "1"]
[TimeControl "5400+30"]

1. d4 {[%emt 0:00:07]} Nf6 {[%emt 0:12:02]} 2. c4 {[%emt 0:00:18]} e6 {[%emt 0:00:18]} 3. Nf3 {[%emt 0:00:06]} b6 {[%emt 0:00:40]} 4. g3 {[%emt 0:01:05]} Bb7 {[%emt 0:00:58]} 5. Bg2 {[%emt 0:00:07]} Bb4+ {[%emt 0:00:16]} 6. Bd2 {[%emt 0:00:25]} c5 {[%emt 0:01:49]} 7. Bxb4 {[%emt 0:00:11]} cxb4 {[%emt 0:00:08]} 8. Qd3 {[%emt 0:01:35]} O-O {[%emt 0:01:29]} 9. Nbd2 {[%emt 0:00:07]} d6 {[%emt 0:00:27]} 10. e4 {[%emt 0:01:05]} Qc7 {[%emt 0:01:06]} 11. O-O {[%emt 0:02:42]} e5 {[%emt 0:00:39]} 12. a3 {[%emt 0:01:37]} bxa3 {[%emt 0:03:44]} 13. Rxa3 {[%emt 0:00:45]} a5 {[%emt 0:00:25]} 14. Rc3 {[%emt 0:11:01]} Na6 {[%emt 0:01:01]} 15. Qe3 {[%emt 0:02:30]} Rfe8 {[%emt 0:01:41]} 16. h3 {[%emt 0:02:13]} Rad8 {[%emt 0:02:40]} 17. Re1 {[%emt 0:01:21]} h6 {[%emt 0:02:10]} 18. Nh4 {[%emt 0:11:13]} Bc8 {[%emt 0:01:40]} 19. Nhf3 {[%emt 0:05:00]} Bb7 {[%emt 0:00:49]} 20. Nh4 {[%emt 0:00:30]} Bc8 {[%emt 0:00:40]} 21. Nhf3 {[%emt 0:00:16]} Bb7 {[%emt 0:00:33]} 22. Nh4 {[%emt 0:00:45]} 1/2-1/2